bitfinex/quotes_ETHUSD_20240701
["timestamp","ask_amount","ask_price","bid_price","bid_amount"]
[1719835282538,0.03488861,3464.8,3464.7,2.88623]
[1719835282752,2.4081,3465.1,3464.7,2.88623]
[1719835283102,0.03498141,3465.0,3464.7,2.88623]
[1719835283299,0.03498141,3465.0,3464.8,0.8268281]
[1719835284504,0.03498141,3465.0,3464.8,3.7129881]
[1719835286342,2.88576,3465.3,3464.8,3.7129881]
[1719835286576,0.03511038,3465.2,3464.8,3.7129881]
[1719835286759,2.4699,3465.4,3464.8,3.7129881]
[1719835287047,0.03515677,3465.3,3464.8,3.7129881]
[1719835287262,0.03515677,3465.3,3464.9,0.68879491]
[1719835289557,2.92094677,3465.3,3464.8,0.8268281]
[1719835289762,2.92094677,3465.3,3464.7,2.88622]
[1719835290122,2.92094677,3465.3,3464.7,5.7724]
[1719835290320,2.92094677,3465.3,3464.8,2.88615]
[1719835290720,2.92094677,3465.3,3464.5,2.207]
[1719835290721,0.03515677,3465.3,3464.5,2.207]
[1719835290920,0.144,3465.5,3465.0,2.88595]
[1719835291119,0.03531167,3465.4,3465.0,2.88595]
[1719835291577,2.2826,3465.3,3465.0,2.88595]
[1719835291721,0.03521698,3465.2,3465.0,2.88595]
[1719835291921,2.2826,3465.3,3465.0,2.88595]
[1719835292165,0.0352189,3465.2,3464.9,2.88606]
[1719835292466,2.2826,3465.3,3464.9,2.88606]
[1719835292667,0.03517251,3465.1,3465.0,2.886]
[1719835292874,2.2826,3465.3,3465.0,2.886]
[1719835293225,0.03522052,3465.2,3465.0,2.886]
[1719835293727,0.03517413,3465.1,3465.0,2.886]
[1719835293954,2.2826,3465.3,3465.0,3.463211]
[1719835294152,0.03521853,3465.2,3465.0,3.463211]
[1719835294351,2.2826,3465.3,3465.0,3.463211]
[1719835294670,2.2826,3465.3,3464.8,2.8861]
[1719835294671,0.03521853,3465.2,3464.8,2.8861]
[1719835295030,2.2826,3465.3,3464.8,2.8861]
[1719835295269,2.8861,3464.9,3464.4,2.88647]
[1719835295451,2.88588,3465.2,3463.9,2.88686]
[1719835295452,2.4173,3464.6,3463.9,2.88686]
[1719835295776,0.03446492,3464.5,3464.0,2.88682]
[1719835296096,0.03446492,3464.5,3464.1,2.88675]
[1719835296370,0.03446492,3464.5,3464.2,2.88665]
[1719835296756,0.03446492,3464.5,3464.4,5.773]
[1719835297067,0.03446492,3464.5,3464.4,6.72333]
[1719835297251,2.392,3465.1,3464.6,2.88625]
[1719835297633,0.03466922,3465.0,3464.7,2.88624]
[1719835298465,0.03466922,3465.0,3464.8,2.8861]
[1719835298983,0.03466922,3465.0,3464.9,7.97916]
[1719835299141,2.4605,3465.4,3465.0,2.88599]
[1719835299534,0.03520859,3465.3,3465.0,2.88599]
[1719835299935,0.03520859,3465.3,3465.1,2.88589]
[1719835301783,0.03520859,3465.3,3465.2,5.77166]
[1719835301980,0.144,3465.5,3465.3,2.8857]
[1719835302279,0.03414824,3465.4,3465.3,3.46862399]
[1719835302778,0.03414824,3465.4,3465.3,0.58292399]
[1719835302988,0.03414824,3465.4,3465.1,2.88585]
[1719835303629,0.03414824,3465.4,3464.9,3.683926]
[1719835303834,0.03414824,3465.4,3465.0,2.88596]
[1719835304253,0.03414824,3465.4,3465.0,2.88593]
[1719835304660,0.03414824,3465.4,3465.1,2.88591]
[1719835304840,0.03414824,3465.4,3465.1,3.5429046]
[1719835305451,0.03414824,3465.4,3465.1,3.60061608]
[1719835306032,0.03414824,3465.4,3465.3,2.88575]
[1719835312295,0.03414824,3465.4,3465.2,2.88582]
[1719835312580,0.03414824,3465.4,3465.1,0.6569946]
[1719835312917,0.03414824,3465.4,3465.1,6.4286846]
[1719835313084,0.03414824,3465.4,3465.1,3.5428346]
[1719835314688,0.03414824,3465.4,3465.2,3.74936746]
[1719835315437,0.03414824,3465.4,3465.3,2.88575]
[1719835315646,0.03414824,3465.4,3465.3,7.9785]
[1719835316287,0.144,3465.5,3465.4,5.77132]
[1719835324586,0.144,3465.5,3465.4,8.65698]
[1719835324792,0.144,3465.5,3465.4,9.98206675]
[1719835327336,0.144,3465.5,3465.4,14.50536675]
[1719835328599,1e-08,3465.5,3465.4,14.50536675]
[1719835329100,1e-08,3465.5,3465.4,17.39102675]
[1719835330931,1e-08,3465.5,3465.4,14.50536675]
[1719835332842,2.2817,3466.4,3466.2,2.88495]
[1719835333041,2.2817,3466.4,3466.3,0.577008]
[1719835333344,2.31433029,3466.4,3465.6,2.88545]
[1719835333571,2.91754029,3466.4,3465.7,2.8854]
[1719835333731,2.91754029,3466.4,3465.8,2.88527]
[1719835333732,2.2724,3466.3,3465.8,2.88527]
[1719835333925,2.2724,3466.3,3465.8,2.88526]
[1719835334153,0.03253998,3466.2,3465.9,2.8852]
[1719835334664,2.2724,3466.3,3465.9,0.797746]
[1719835334864,2.2724,3466.3,3466.2,2.885]
[1719835335768,12.79745797,3467.7,3466.2,2.885]
[1719835335769,2.88339,3468.2,3467.4,2.884]
[1719835335967,7.33,3469.0,3466.2,6.2006]
[1719835335968,2.88375,3467.8,3467.0,2.88431]
[1719835336175,2.88372,3467.8,3467.1,2.88425]
[1719835336544,2.8839,3467.6,3466.9,2.88441]
[1719835337466,2.8839,3467.6,3467.0,2.88433]
[1719835337678,3.0279,3467.6,3466.8,2.88444]
[1719835337844,2.884,3467.4,3466.9,2.88441]
[1719835338051,3.0279,3467.6,3466.9,2.88441]
[1719835338052,5.91179,3467.6,3466.9,2.88441]
[1719835338249,2.88392,3467.5,3466.9,2.88441]
[1719835338445,0.144,3467.6,3466.9,2.88441]
[1719835338646,2.3036,3467.5,3466.9,2.88441]
[1719835339143,2.3807,3467.4,3466.9,2.88441]
[1719835340772,2.3807,3467.4,3467.0,2.8843]
[1719835341068,2.88418,3467.2,3466.7,5.09154]
[1719835341270,2.3728,3467.1,3466.7,2.88454]
[1719835342054,2.3728,3467.1,3466.5,2.88471]
[1719835342256,5.25706,3467.1,3466.5,2.88471]
[1719835344077,5.25706,3467.1,3466.3,2.88489]
[1719835344078,2.88441,3467.0,3466.3,2.88489]
[1719835344400,2.88443,3466.9,3466.3,3.682586]
[1719835344552,2.88443,3466.9,3466.3,6.567426]
[1719835344752,5.25706,3467.1,3466.4,2.88475]
[1719835345198,5.25706,3467.1,3466.5,2.88475]
[1719835346094,5.25706,3467.1,3466.3,3.682536]
[1719835346095,0.144,3467.6,3467.1,2.88421]
[1719835346397,2.5944,3467.6,3467.1,2.88421]
[1719835346573,2.5944,3467.6,3467.2,2.88416]
[1719835347458,2.5944,3467.6,3467.2,2.88415]
[1719835348379,2.5944,3467.6,3467.0,5.09132]
[1719835348380,2.5944,3467.6,3467.0,2.207]
[1719835348588,2.5944,3467.6,3466.3,7.32]
[1719835348589,2.88405,3467.4,3466.6,2.88466]
[1719835348767,2.88405,3467.4,3466.6,2.88459]
[1719835349299,0.0284189,3467.3,3466.4,5.09181]
[1719835349492,2.3014,3467.2,3466.3,7.32]
[1719835349695,2.88463,3466.7,3466.3,7.32]
[1719835349867,2.88463,3466.7,3466.0,2.88513]
[1719835350064,2.88482,3466.5,3465.8,2.8853]
[1719835350277,0.02799645,3466.4,3465.8,2.8853]
[1719835350709,0.02799645,3466.4,3466.0,2.88511]
[1719835351007,0.02799645,3466.4,3466.1,0.577041]
[1719835352326,0.02799645,3466.4,3465.2,0.86358746]
[1719835352484,2.88524,3466.0,3465.3,2.88567]
[1719835352686,2.88524,3466.0,3465.2,0.86358746]
[1719835352687,2.88543,3465.7,3465.2,0.86358746]
[1719835352885,0.02952742,3465.6,3465.3,0.59564875]
[1719835354520,0.0294739,3465.5,3465.3,0.59564875]
[1719835354825,0.0294739,3465.5,3465.4,5.82902685]
[1719835354976,2.88502,3466.2,3465.6,2.8855]
[1719835355170,2.88502,3466.2,3465.6,5.0925]
[1719835355519,2.88502,3466.2,3465.6,5.95565156]
[1719835355666,2.88484,3466.4,3465.6,5.95565156]
[1719835355667,2.88495,3466.3,3465.6,5.95565156]
[1719835355978,2.88501,3466.2,3465.6,5.95565156]
[1719835357401,2.2985,3466.5,3465.7,0.05769976]
[1719835357606,2.88472,3466.6,3466.0,2.88516]
[1719835357909,2.88472,3466.6,3466.1,0.05769587]
[1719835358771,2.88475,3466.5,3466.1,0.05769587]
[1719835359634,2.88464,3466.7,3466.1,0.05769587]
[1719835359977,2.88459,3466.7,3466.0,2.88516]
[1719835360176,2.88459,3466.7,3466.1,0.577046]
[1719835360619,2.88459,3466.7,3466.1,3.462126]
[1719835360972,5.27237,3467.0,3466.1,3.462126]
[1719835361178,5.27237,3467.0,3465.7,0.30701516]
[1719835361179,2.88455,3466.8,3466.2,2.94267388]
[1719835363591,2.88463,3466.7,3466.0,5.09216]
[1719835363791,2.88463,3466.7,3466.1,2.88508]
[1719835364325,2.88467,3466.6,3466.1,2.88508]
[1719835364617,2.8847,3466.6,3465.8,2.8853]
[1719835364807,2.8847,3466.6,3465.8,3.94047052]
[1719835365119,2.8847,3466.6,3465.9,2.88525]
[1719835365317,5.27237,3467.0,3465.9,2.88525]
[1719835365318,2.88453,3466.8,3465.9,2.88525]
[1719835365477,2.88471,3466.6,3466.0,2.88515]
[1719835365687,2.88471,3466.6,3466.0,3.60418337]
[1719835365998,0.02983872,3466.5,3466.0,3.60418337]
[1719835366620,0.02983872,3466.5,3466.0,0.71903337]
[1719835366806,2.88485,3466.4,3465.8,2.88526]
[1719835367332,0.02973172,3466.3,3465.8,2.88526]
[1719835368128,0.02973172,3466.3,3465.8,5.77052]
[1719835368297,0.02973172,3466.3,3465.9,2.88523]
[1719835368503,2.88485,3466.4,3465.9,2.88523]
[1719835368704,2.88485,3466.4,3465.9,3.71368052]
[1719835369828,2.88471,3466.6,3465.9,6.65655857]
[1719835370001,2.88471,3466.6,3465.9,3.77132857]
[1719835370202,2.388,3467.0,3466.0,2.88511]
[1719835370791,2.88473,3466.6,3466.0,2.88511]
[1719835371014,2.88473,3466.6,3465.9,0.82845052]
[1719835371015,2.8848,3466.5,3465.9,0.82845052]
[1719835371205,2.8848,3466.5,3465.9,3.71369052]
[1719835372808,2.8848,3466.5,3465.9,6.59887052]
[1719835373030,2.8848,3466.5,3466.0,3.54502705]
[1719835374331,2.88454,3466.8,3466.0,3.54502705]
[1719835374728,2.88469,3466.6,3466.0,3.54502705]
[1719835374904,2.88469,3466.6,3466.0,6.43012705]
[1719835375343,2.88469,3466.6,3466.0,3.54498705]
[1719835375629,2.88469,3466.6,3466.1,0.6430277]
[1719835376405,5.27235,3467.0,3466.1,0.7007234]
[1719835376737,2.88442,3466.9,3466.4,2.88481]
[1719835376943,2.388,3467.0,3466.4,2.88481]
[1719835377436,5.388,3467.0,3466.4,2.88481]
[1719835377649,8.27234,3467.0,3466.4,2.88481]
[1719835378702,8.27234,3467.0,3466.2,2.88493]
[1719835378904,8.27234,3467.0,3466.0,7.56922]
[1719835378905,2.88466,3466.7,3466.0,5.09212]
[1719835379355,2.8848,3466.5,3465.9,2.88524]
[1719835380234,2.88493,3466.3,3465.7,2.88537]
[1719835380432,2.88493,3466.3,3465.7,2.8854]
[1719835380665,2.88493,3466.3,3465.8,0.797785]
[1719835382739,2.88493,3466.3,3465.8,0.797785]
[1719835383155,2.88513,3466.1,3465.8,0.797785]
[1719835383351,2.88513,3466.1,3465.6,2.207]
[1719835383751,2.88513,3466.1,3465.3,3.48136875]
[1719835383752,2.88513,3466.1,3465.3,0.59564875]
[1719835383935,2.88542,3465.7,3465.3,0.59564875]
[1719835384136,2.8853,3465.9,3465.3,3.48138875]
[1719835384670,2.88533,3465.8,3465.3,3.48138875]
[1719835384961,2.88533,3465.8,3465.4,0.63672588]
[1719835385168,2.88544,3465.7,3465.4,0.63672588]
[1719835385364,2.88544,3465.7,3465.3,0.59564875]
[1719835386328,2.88551,3465.6,3465.3,0.59564875]
[1719835386528,2.88558,3465.5,3465.3,0.59564875]
[1719835386728,2.88558,3465.5,3464.9,2.88601]
[1719835386967,2.88558,3465.5,3464.9,5.77202]
[1719835387570,2.88558,3465.5,3464.9,2.88601]
[1719835387736,2.88558,3465.5,3465.0,0.818324]
[1719835388070,2.88558,3465.5,3465.0,3.704314]
[1719835391242,2.88542,3465.7,3465.1,0.05771097]
[1719835391436,2.88527,3465.9,3465.1,0.05771097]
[1719835392345,2.88527,3465.9,3465.3,2.88569]
[1719835392548,2.88527,3465.9,3465.3,3.4825625]
[1719835393066,2.88527,3465.9,3465.3,0.5968725]
[1719835393241,2.88527,3465.9,3465.3,2.88569]
[1719835394783,2.88518,3466.0,3465.4,2.94334843]
[1719835394949,2.88506,3466.2,3465.5,2.88553]
[1719835395589,2.88506,3466.2,3465.6,2.88549]
[1719835396947,2.88506,3466.2,3465.5,2.88553]
[1719835397142,2.88506,3466.2,3465.6,2.88549]
[1719835397380,2.4047,3466.3,3465.7,0.05770456]
[1719835397589,5.28967,3466.3,3465.6,3.462565]
[1719835398487,2.885,3466.2,3465.6,3.462565]
[1719835398686,2.88517,3466.0,3465.4,5.09259]
[1719835402558,2.88517,3466.0,3465.4,2.88559]
[1719835403662,5.77041,3466.0,3465.4,2.88559]
[1719835404775,2.88517,3466.0,3465.4,2.88559]
[1719835406305,2.88502,3466.2,3465.6,2.88548]
[1719835406511,2.4047,3466.3,3465.7,2.94307166]
[1719835407002,5.28967,3466.3,3465.7,2.94307166]
[1719835407503,5.28967,3466.3,3465.5,2.9432216]
[1719835407714,5.28967,3466.3,3465.6,2.88549]
[1719835408013,5.28967,3466.3,3465.7,0.05770199]
[1719835408305,5.28967,3466.3,3465.7,2.94311199]
[1719835411989,5.28967,3466.3,3466.0,0.919]
[1719835412195,2.4047,3466.3,3466.0,0.919]
[1719835412519,2.3119,3466.6,3466.0,0.3862112]
[1719835412816,2.3119,3466.6,3466.2,0.919]
[1719835413022,2.3119,3466.6,3466.4,0.919]
[1719835413164,5.76894,3466.9,3466.4,0.919]
[1719835413165,5.19635,3466.9,3466.4,0.919]
[1719835413363,5.19635,3466.9,3466.6,0.919]
[1719835413565,0.54278044,3466.8,3466.6,0.919]
[1719835415399,5.19635,3466.9,3466.6,0.919]
[1719835415806,5.19635,3466.9,3466.3,2.88486]
[1719835416107,2.8845,3466.8,3466.3,2.88486]
[1719835416460,5.19632,3466.9,3466.3,2.88486]
[1719835417205,5.19632,3466.9,3466.3,2.94255153]
[1719835419081,8.08081,3466.9,3466.3,2.94255153]
[1719835419312,2.88451,3466.8,3466.3,2.94255153]
[1719835419978,2.3119,3466.9,3466.3,2.94255153]
[1719835420379,5.19632,3466.9,3466.3,2.94255153]
[1719835420714,5.19632,3466.9,3466.3,2.94254153]
[1719835420895,5.19632,3466.9,3466.3,2.88485]
[1719835421224,5.19632,3466.9,3466.3,3.17910415]
[1719835421798,5.19632,3466.9,3466.3,3.23679569]
[1719835424531,5.19632,3466.9,3466.4,2.8848]
[1719835424886,2.88442,3466.9,3466.4,2.8848]
[1719835425303,2.4547,3467.2,3466.4,0.05769156]
[1719835425634,0.144,3467.6,3466.8,2.4261]
[1719835425841,0.144,3467.6,3467.0,2.8843]
[1719835426012,0.144,3467.6,3466.8,2.4261]
[1719835426013,0.144,3467.6,3467.2,2.88413]
[1719835426198,0.144,3467.6,3467.3,2.88403]
[1719835426400,0.144,3467.6,3467.4,0.576816]
[1719835429201,0.144,3467.6,3467.4,3.460806]
[1719835429825,0.144,3467.6,3467.5,2.88392]
[1719835430135,0.144,3467.6,3467.4,0.576816]
[1719835430333,0.144,3467.6,3467.3,2.88402]
[1719835431101,0.144,3467.6,3467.4,2.88392]
[1719835432201,0.144,3467.6,3467.1,2.88418]
[1719835433505,3.02784,3467.6,3467.1,2.88418]
[1719835433702,3.02784,3467.6,3467.2,0.576855]
[1719835436000,3.02784,3467.6,3467.4,0.918]
[1719835441310,0.144,3467.6,3467.4,0.918]
[1719835443439,0.144,3467.6,3467.4,3.80198]
[1719835443750,0.144,3467.6,3467.4,3.85965446]
[1719835443918,0.144,3467.6,3467.5,0.73205795]
[1719835447046,0.144,3467.6,3467.5,3.67365051]
[1719835447760,0.144,3467.6,3467.5,6.55757051]
[1719835448413,1e-08,3467.6,3467.5,9.44149051]
[1719835449147,1e-08,3467.6,3467.5,12.41929051]
[1719835449546,1e-08,3467.6,3467.5,15.41929051]
[1719835449722,1e-08,3467.6,3467.5,20.03921051]
[1719835450659,5.37478,3469.0,3468.4,2.88313]
[1719835450815,5.37478,3469.0,3468.8,0.918]
[1719835451016,2.88275,3468.9,3468.8,0.918]
[1719835451917,2.88275,3468.9,3468.6,0.918]
[1719835452555,2.4921,3469.0,3468.6,0.918]
[1719835452763,2.8828,3468.9,3468.6,0.918]
[1719835453421,5.3299,3469.1,3468.8,0.918]
[1719835453811,2.88276,3468.9,3468.8,0.918]
[1719835454057,2.88276,3468.9,3468.6,0.918]
[1719835454259,2.88268,3469.0,3468.6,0.918]
[1719835454744,2.4473,3469.1,3468.8,0.918]
[1719835455228,2.88269,3469.0,3468.8,0.918]
[1719835457413,5.3299,3469.1,3468.8,0.918]
[1719835458828,2.8826,3469.1,3469.0,0.918]
[1719835459319,2.88269,3469.0,3468.8,0.918]
[1719835459738,2.88274,3469.0,3468.7,0.918]
[1719835460020,2.3689,3468.9,3468.7,0.918]
[1719835460221,5.25171,3468.9,3468.3,2.88322]
[1719835460421,5.25171,3468.9,3468.6,0.918]
[1719835463017,2.88284,3468.8,3468.6,0.918]
[1719835463235,8.13454,3468.9,3468.6,0.918]
[1719835463440,5.25171,3468.9,3468.6,0.918]
[1719835464143,2.88285,3468.8,3468.6,0.918]
[1719835464496,2.88268,3469.0,3468.6,0.918]
[1719835464668,2.88268,3469.0,3468.8,0.918]
[1719835465195,2.88272,3469.0,3468.8,0.918]
[1719835466377,5.76546,3469.0,3468.8,0.918]
[1719835466675,5.20635,3468.9,3468.8,0.918]
[1719835466849,2.88275,3468.9,3468.8,0.918]
[1719835467375,2.88255,3469.2,3468.8,0.918]
[1719835467376,2.88266,3469.1,3468.8,0.918]
[1719835467582,2.88268,3469.0,3468.4,3.70668]
[1719835467742,2.88259,3469.1,3469.0,0.918]
[1719835468142,2.88249,3469.3,3469.0,0.918]
[1719835468350,2.88221,3469.6,3469.2,0.918]
[1719835468556,2.88227,3469.5,3469.4,0.918]
[1719835472061,2.88218,3469.6,3469.4,0.918]
[1719835474183,3.0,3470.1,3469.4,0.918]
[1719835474397,2.88207,3469.8,3469.2,2.88249]
[1719835474543,2.88207,3469.8,3469.6,0.918]
[1719835475176,2.88209,3469.7,3469.6,0.918]
[1719835475576,2.8822,3469.6,3469.0,2.88267]
[1719835475787,2.8822,3469.6,3469.5,0.918]
[1719835476686,2.8821,3469.7,3469.5,0.918]
[1719835476888,2.8821,3469.7,3469.0,2.88262]
[1719835476889,2.88217,3469.6,3469.0,2.88262]
[1719835477066,2.88217,3469.6,3469.5,0.918]
[1719835477884,2.88204,3469.8,3469.5,0.918]
[1719835478087,0.30118531,3470.1,3469.5,0.918]
[1719835478088,2.8818,3470.1,3469.7,0.918]
[1719835478260,2.8818,3470.1,3469.4,2.88232]
[1719835478261,5.4778,3470.3,3469.4,2.88232]
[1719835478262,2.88201,3469.8,3469.4,0.05764102]
[1719835478614,2.88201,3469.8,3469.3,2.4068]
[1719835478765,2.88201,3469.8,3469.7,0.918]
[1719835481311,2.88197,3469.9,3469.7,0.918]
[1719835481884,2.88186,3470.0,3469.7,0.918]
[1719835482133,2.88186,3470.0,3469.4,2.93997103]
[1719835482134,2.88186,3470.0,3469.9,0.918]
[1719835482954,2.88186,3470.0,3469.4,2.93991103]
[1719835483249,2.88186,3470.0,3469.9,0.918]
[1719835488957,2.88172,3470.2,3469.9,0.918]
[1719835489256,5.15799,3470.6,3470.1,0.918]
[1719835489549,2.88151,3470.4,3470.3,0.918]
[1719835489756,2.88145,3470.5,3470.3,0.918]
[1719835491610,2.88151,3470.4,3470.3,0.918]
[1719835491830,2.88177,3470.1,3469.6,2.88214]
[1719835492015,2.88177,3470.1,3469.9,0.918]
[1719835492225,2.88164,3470.3,3469.9,0.918]
[1719835492839,2.88168,3470.2,3469.9,0.918]
[1719835493272,0.918,3470.9,3470.1,0.918]
[1719835493273,2.88133,3470.7,3470.1,0.918]
[1719835493441,2.88148,3470.5,3470.4,0.918]
[1719835493640,2.88169,3470.2,3470.1,0.918]
[1719835493835,5.20639,3470.2,3470.1,0.918]
[1719835494034,5.20639,3470.2,3469.5,2.88225]
[1719835494035,2.88176,3470.1,3469.5,2.88225]
[1719835494258,2.88176,3470.1,3469.8,0.918]
[1719835495033,2.3247,3470.2,3470.0,0.918]
[1719835495228,2.88168,3470.2,3470.0,0.918]
[1719835497589,2.88168,3470.2,3469.4,5.19703]
[1719835497894,2.88185,3470.0,3469.5,4.422191]
[1719835498089,5.76342,3470.2,3469.9,0.918]
[1719835498278,2.88168,3470.2,3469.9,0.918]
[1719835498471,2.88168,3470.2,3470.1,0.918]
[1719835504203,2.88131,3470.7,3470.1,0.918]
[1719835504410,2.88131,3470.7,3470.3,0.918]
[1719835504411,2.88148,3470.5,3470.3,0.918]
[1719835504702,2.88148,3470.5,3470.1,0.918]
[1719835506273,2.88148,3470.5,3470.1,1.541367]
[1719835507072,2.88151,3470.4,3470.1,1.541367]
[1719835507285,5.76333,3470.3,3469.7,5.32709]
[1719835507490,2.88166,3470.3,3470.0,0.918]
[1719835507716,2.88166,3470.3,3469.5,4.422141]
[1719835507918,2.88176,3470.1,3469.9,0.918]
[1719835509675,5.7636,3470.1,3469.9,0.918]
[1719835509890,2.88184,3470.0,3469.9,0.918]
[1719835510092,2.88172,3470.2,3469.9,0.918]
[1719835510293,2.88172,3470.2,3470.1,0.918]
[1719835511127,2.88146,3470.5,3470.1,0.918]
[1719835511283,2.88156,3470.4,3470.3,0.918]
[1719835512750,2.88151,3470.4,3470.3,0.918]
[1719835514763,2.8816,3470.3,3470.1,0.918]
[1719835515249,2.8816,3470.3,3469.7,2.88202]
[1719835515250,2.88167,3470.2,3470.0,0.918]
[1719835515637,5.76309,3470.4,3470.0,0.918]
[1719835515975,2.88151,3470.4,3470.0,0.918]
[1719835516460,5.7631,3470.4,3470.0,0.918]
[1719835516762,2.8816,3470.3,3470.0,0.918]
[1719835517259,2.8816,3470.3,3470.2,0.918]
[1719835518362,2.88149,3470.5,3470.2,0.918]
[1719835518567,2.88151,3470.4,3470.2,0.918]
[1719835519357,2.88138,3470.6,3470.2,0.918]
[1719835519568,2.88148,3470.5,3470.2,0.918]
[1719835520490,2.88135,3470.6,3470.2,0.918]
[1719835521980,8.03137,3470.8,3470.2,0.918]
[1719835522187,5.15012,3470.8,3470.4,0.918]
[1719835522404,2.8813,3470.7,3470.4,0.918]
[1719835522775,2.90107,3471.0,3470.6,0.918]
[1719835522970,0.02,3471.0,3470.8,0.918]
[1719835523362,0.02,3471.0,3470.9,0.918]
[1719835523785,2.88135,3470.6,3470.5,0.918]
[1719835524200,0.814003,3470.6,3469.4,2.88231]
[1719835524382,2.88181,3470.1,3469.4,2.88227]
[1719835524593,2.88181,3470.1,3469.7,0.918]
[1719835524907,2.88163,3470.3,3469.8,0.918]
[1719835525065,2.8816,3470.3,3470.0,0.918]
[1719835525506,2.88168,3470.2,3470.0,0.918]
[1719835526083,2.2958,3470.6,3469.7,0.0576353]
[1719835526084,5.17718,3470.6,3469.7,0.0576353]
[1719835526280,2.88182,3470.1,3469.9,0.918]
[1719835528194,2.88159,3470.3,3469.9,0.918]
[1719835528398,2.88159,3470.3,3470.1,0.918]
[1719835528801,2.88146,3470.5,3470.1,0.918]
[1719835529820,5.76297,3470.5,3470.1,0.918]
[1719835530024,2.88146,3470.5,3470.1,0.918]
[1719835531081,2.8813,3470.7,3470.1,0.918]
[1719835531778,2.88143,3470.5,3470.3,0.918]
[1719835531983,2.95593123,3470.6,3470.3,0.918]
[1719835532183,0.07445564,3470.4,3470.3,0.918]
[1719835532398,2.88135,3470.6,3470.3,0.918]
[1719835532645,0.0730265,3470.4,3470.3,0.918]
[1719835532824,2.88135,3470.6,3470.3,0.918]
[1719835533025,0.0730265,3470.4,3470.3,0.918]
[1719835533335,0.02,3471.0,3470.3,1.526094]
[1719835533539,0.02,3471.0,3470.7,0.918]
[1719835533747,0.02,3471.0,3470.9,0.918]
[1719835536564,0.02,3471.0,3470.7,0.918]
[1719835536866,0.02,3471.0,3470.6,2.88132]
[1719835536867,0.02,3471.0,3470.9,0.918]
[1719835537870,0.02,3471.0,3470.7,0.918]
[1719835538074,2.90101,3471.0,3470.7,0.918]
[1719835538389,2.90101,3471.0,3470.7,1.4097478]
[1719835538390,0.02,3471.0,3470.7,1.4097478]
[1719835539482,0.02,3471.0,3470.9,3.79909]
[1719835540283,0.02,3471.0,3470.9,6.29629]
[1719835540842,0.09350405,3471.0,3470.9,6.29629]
[1719835541143,0.09350405,3471.0,3470.9,7.26320978]
[1719835541934,0.09350405,3471.0,3470.9,10.14429978]
[1719835542348,0.02,3471.0,3470.9,10.14429978]
[1719835543991,0.02,3471.0,3470.9,13.02538978]
[1719835545050,0.02,3471.0,3470.9,16.02538978]
[1719835545257,7.33,3472.8,3471.1,2.2838]
[1719835545457,2.4438,3472.9,3471.7,0.918]
[1719835545458,2.4438,3472.1,3471.7,0.918]
[1719835545707,2.4438,3472.1,3471.3,0.918]
[1719835545708,5.32398,3472.1,3471.3,0.918]
[1719835545859,0.07388287,3472.0,3471.5,3.79858]
[1719835546193,0.07388287,3472.0,3471.1,0.918]
[1719835546194,3.87206287,3472.0,3471.1,0.918]
[1719835546405,2.88027,3471.9,3471.1,3.79887]
[1719835546605,2.88041,3471.8,3471.1,3.79887]
[1719835546760,2.88044,3471.7,3471.3,0.918]
[1719835546957,0.07385984,3471.8,3471.3,0.918]
[1719835547164,2.95422984,3471.8,3471.3,0.918]
[1719835547673,0.07385984,3471.8,3471.3,0.918]
[1719835547865,2.95421984,3471.8,3471.1,2.88092]
[1719835548070,0.07374773,3471.7,3471.2,3.456979]
[1719835548289,0.07374773,3471.7,3471.3,2.88074]
[1719835548473,2.4438,3472.1,3471.3,2.88074]
[1719835548688,0.07379698,3472.0,3471.4,2.88066]
[1719835549102,2.95398698,3472.0,3471.4,2.88066]
[1719835549405,2.88027,3471.9,3471.4,2.88066]
[1719835549559,2.88035,3471.8,3471.2,2.88078]
[1719835549758,0.07407797,3471.7,3471.2,2.88078]
[1719835552796,2.88058,3471.6,3471.0,2.88099]
[1719835552955,2.4756,3471.5,3470.8,2.88113]
[1719835553159,5.43019865,3471.5,3470.6,2.88134]
[1719835553400,2.88069,3471.4,3470.7,2.88121]
[1719835553701,0.07389932,3471.3,3470.7,2.88121]
[1719835554008,2.95466932,3471.3,3470.7,2.88121]
[1719835555102,0.07389932,3471.3,3470.7,5.7624]
[1719835555309,0.07389932,3471.3,3470.8,3.82930369]
[1719835556398,2.8809,3471.2,3470.8,0.94813369]
[1719835556629,0.07389932,3471.3,3470.8,0.94813369]
[1719835556904,2.95469738,3471.2,3470.8,0.94813369]
[1719835557058,2.95469738,3471.2,3470.6,1.3020369]
[1719835557059,0.07383738,3471.2,3470.7,2.88121]
[1719835557260,2.88096,3471.1,3470.6,4.1833069]
[1719835557496,0.07374804,3471.0,3470.6,4.1833069]
[1719835557694,2.88087,3471.2,3470.7,2.88126]
[1719835558013,0.07379271,3471.1,3470.7,2.88126]
[1719835558204,0.07379271,3471.1,3470.7,4.04930669]
[1719835558432,2.88081,3471.3,3470.8,2.4394]
[1719835558848,0.0712757,3471.2,3470.8,2.4394]
[1719835559132,2.88081,3471.3,3470.7,4.04930669]
[1719835559297,0.0712757,3471.2,3470.7,4.04930669]
[1719835560505,0.0712757,3471.2,3470.5,5.30279]
[1719835560506,0.0712757,3471.2,3471.0,2.88094]
[1719835560719,2.88068,3471.4,3470.9,2.88104]
[1719835560924,0.07115439,3471.3,3470.9,2.88104]